[Event "2026 European Womens Championship"]
[Site "Batumi, GE"]
[Date "2026.06.01"]
[Round "7"]
[White "Sivanandan, Bodhana"]
[Black "Piddubna, Bozhena"]
[Result "1/2-1/2"]
[Board "71"]
[TimeControl "5400+30"]
[WhiteFideId "497592"]
[BlackFideId "34109293"]
[WhiteElo "2374"]
[BlackElo "2235"]
[WhiteTitle "FM"]
[BlackTitle "WIM"]
[WhiteClock "0:04:21"]
[BlackClock "0:04:05"]
[Variant "Standard"]

1. e4 {[%clk 1:27:14]}  e5 {[%clk 1:30:49]} 2. Nf3 {[%clk 1:27:31]}  Nc6 {[%clk 1:31:06]} 3. Bc4 {[%clk 1:27:42]}  Nf6 {[%clk 1:31:25]}
4. d3 {[%clk 1:27:55]}  Bc5 {[%clk 1:30:49]} 5. O-O {[%clk 1:27:40]}  d6 {[%clk 1:30:35]} 6. c3 {[%clk 1:26:56]}  a5 {[%clk 1:29:13]}
7. Nbd2 {[%clk 1:25:00]}  Ba7 {[%clk 1:26:27]} 8. Bb3 {[%clk 1:23:41]}  O-O {[%clk 1:24:11]} 9. h3 {[%clk 1:23:06]}  Be6 {[%clk 1:19:45]}
10. Re1 {[%clk 1:17:38]}  Qd7 {[%clk 1:09:41]} 11. Nf1 {[%clk 1:10:12]}  h6 {[%clk 1:09:41]} 12. Bc2 {[%clk 1:09:31]}  d5 {[%clk 0:50:26]}
13. exd5 {[%clk 1:06:53]}  Qxd5 {[%clk 0:50:50]} 14. Be3 {[%clk 1:04:03]}  Bxe3 {[%clk 0:47:03]} 15. Nxe3 {[%clk 1:04:04]}  Qc5 {[%clk 0:46:22]}
16. Bb3 {[%clk 0:53:08]}  Bxb3 {[%clk 0:40:28]} 17. Qxb3 {[%clk 0:53:15]}  Rfd8 {[%clk 0:40:23]} 18. Rad1 {[%clk 0:47:27]}  b5 {[%clk 0:36:00]}
19. a4 {[%clk 0:45:35]}  b4 {[%clk 0:33:15]} 20. Nc4 {[%clk 0:43:09]}  bxc3 {[%clk 0:24:00]} 21. bxc3 {[%clk 0:43:11]}  Rab8 {[%clk 0:23:56]}
22. Qa2 {[%clk 0:42:14]}  Re8 {[%clk 0:21:15]} 23. Nfd2 {[%clk 0:36:13]}  Qd5 {[%clk 0:18:18]} 24. Qc2 {[%clk 0:33:33]}  Rbd8 {[%clk 0:12:02]}
25. Ne4 {[%clk 0:29:56]}  Nh5 {[%clk 0:12:21]} 26. Ne3 {[%clk 0:15:36]}  Qe6 {[%clk 0:12:17]} 27. Nc5 {[%clk 0:14:59]}  Qg6 {[%clk 0:09:45]}
28. Qe2 {[%clk 0:14:46]}  Nf4 {[%clk 0:07:41]} 29. Qg4 {[%clk 0:14:32]}  Qxg4 {[%clk 0:04:50]} 30. hxg4 {[%clk 0:14:45]}  Nd5 {[%clk 0:04:35]}
31. Nb7 {[%clk 0:05:23]}  Rd7 {[%clk 0:04:02]} 32. Nxd5 {[%clk 0:04:09]}  Rxd5 {[%clk 0:04:26]} 33. c4 {[%clk 0:04:32]}  Rd4 {[%clk 0:03:53]}
34. f3 {[%clk 0:04:19]}  f6 {[%clk 0:02:18]} 35. Nc5 {[%clk 0:03:53]}  Kf7 {[%clk 0:02:39]} 36. Kf2 {[%clk 0:03:28]}  Rb8 {[%clk 0:01:42]}
37. Rb1 {[%clk 0:03:37]}  Nb4 {[%clk 0:01:51]} 38. Ke2 {[%clk 0:03:39]}  Rd6 {[%clk 0:00:52]} 39. Red1 {[%clk 0:02:22]}  Rc6 {[%clk 0:00:52]}
40. Nb3 {[%clk 0:01:08]}  Na2 {[%clk 0:00:42]} 41. Nxa5 {[%clk 0:20:21]}  Nc3+ {[%clk 0:16:59]} 42. Ke1 {[%clk 0:19:32]}  Rxb1 {[%clk 0:15:47]}
43. Rxb1 {[%clk 0:19:53]}  Ra6 {[%clk 0:16:11]} 44. Rb3 {[%clk 0:19:39]}  Rxa5 {[%clk 0:09:12]} 45. Rxc3 {[%clk 0:19:58]}  Rxa4 {[%clk 0:09:39]}
46. Rc2 {[%clk 0:19:41]}  Kg6 {[%clk 0:08:25]} 47. Rb2 {[%clk 0:16:37]}  Ra7 {[%clk 0:06:17]} 48. Kf2 {[%clk 0:15:28]}  h5 {[%clk 0:05:51]}
49. gxh5+ {[%clk 0:15:00]}  Kxh5 {[%clk 0:06:16]} 50. g3 {[%clk 0:14:24]}  Kg5 {[%clk 0:05:25]} 51. Rb8 {[%clk 0:12:58]}  Kf5 {[%clk 0:04:03]}
52. Re8 {[%clk 0:12:31]}  g5 {[%clk 0:03:18]} 53. Rg8 {[%clk 0:12:22]}  Ra2+ {[%clk 0:01:34]} 54. Ke3 {[%clk 0:12:41]}  Ke6 {[%clk 0:01:41]}
55. Rg7 {[%clk 0:11:54]}  c6 {[%clk 0:02:00]} 56. g4 {[%clk 0:10:36]}  Ra1 {[%clk 0:02:01]} 57. Rc7 {[%clk 0:09:15]}  Kd6 {[%clk 0:02:21]}
58. Rc8 {[%clk 0:09:10]}  Re1+ {[%clk 0:02:30]} 59. Kd2 {[%clk 0:09:23]}  Rf1 {[%clk 0:02:47]} 60. Ke2 {[%clk 0:09:45]}  Ra1 {[%clk 0:03:05]}
61. Rd8+ {[%clk 0:09:22]}  Ke7 {[%clk 0:03:08]} 62. Rh8 {[%clk 0:08:43]}  Kd6 {[%clk 0:02:35]} 63. Kd2 {[%clk 0:08:17]}  Rf1 {[%clk 0:02:32]}
64. Rh3 {[%clk 0:07:11]}  Ra1 {[%clk 0:01:30]} 65. Ke2 {[%clk 0:06:41]}  Rb1 {[%clk 0:01:34]} 66. Rh6 {[%clk 0:06:32]}  Ke6 {[%clk 0:02:01]}
67. Rh8 {[%clk 0:06:55]}  Ra1 {[%clk 0:02:20]} 68. Rd8 {[%clk 0:06:30]}  Ke7 {[%clk 0:02:34]} 69. Rb8 {[%clk 0:05:52]}  Kd6 {[%clk 0:02:51]}
70. Rb7 {[%clk 0:05:43]}  Ke6 {[%clk 0:02:49]} 71. Rb6 {[%clk 0:04:24]}  Kd6 {[%clk 0:03:14]} 72. Rb8 {[%clk 0:04:35]}  Ke6 {[%clk 0:03:27]}
73. Rb7 {[%clk 0:03:57]}  Kd6 {[%clk 0:03:49]} 74. Rb6 {[%clk 0:04:02]}  Kc7 {[%clk 0:03:18]} 75. Rb2 {[%clk 0:03:44]}  Kd6 {[%clk 0:03:40]}
76. Rb6 {[%clk 0:03:52]}  Kc7 {[%clk 0:03:41]} 77. Rb2 {[%clk 0:04:14]}  Kd6 {[%clk 0:04:05]} 78. Rb6 {[%clk 0:04:21]} 1/2-1/2

[Event "2026 European Womens Championship"]
[Site "Batumi, GE"]
[Date "2026.06.01"]
[Round "7"]
[White "Klek, Hanna Marie"]
[Black "Kirtadze, Anastasia"]
[Result "1-0"]
[Board "72"]
[TimeControl "5400+30"]
[WhiteFideId "24670057"]
[BlackFideId "13622714"]
[WhiteElo "2369"]
[BlackElo "2233"]
[WhiteTitle "WGM"]
[BlackTitle "WIM"]
[WhiteClock "0:20:35"]
[BlackClock "0:01:05"]
[Variant "Standard"]

1. e4 {[%clk 1:30:56]}  c5 {[%clk 1:28:56]} 2. Nf3 {[%clk 1:31:18]}  e6 {[%clk 1:29:15]} 3. d4 {[%clk 1:31:40]}  cxd4 {[%clk 1:29:41]}
4. Nxd4 {[%clk 1:32:03]}  Nf6 {[%clk 1:30:09]} 5. Nc3 {[%clk 1:32:21]}  Nc6 {[%clk 1:30:34]} 6. Nxc6 {[%clk 1:32:37]}  bxc6 {[%clk 1:31:01]}
7. e5 {[%clk 1:32:56]}  Nd5 {[%clk 1:31:26]} 8. Ne4 {[%clk 1:33:18]}  Qc7 {[%clk 1:31:53]} 9. f4 {[%clk 1:33:40]}  Qb6 {[%clk 1:32:19]}
10. c4 {[%clk 1:33:50]}  Bb4+ {[%clk 1:29:44]} 11. Ke2 {[%clk 1:34:12]}  f5 {[%clk 1:24:56]} 12. Nf2 {[%clk 1:34:09]}  Ba6 {[%clk 1:23:36]}
13. Kf3 {[%clk 1:34:27]}  Ne7 {[%clk 1:22:58]} 14. h4 {[%clk 1:23:07]}  h5 {[%clk 1:21:07]} 15. Be3 {[%clk 1:22:09]}  Bc5 {[%clk 1:20:49]}
16. Bxc5 {[%clk 1:22:21]}  Qxc5 {[%clk 1:21:11]} 17. Qd6 {[%clk 1:22:31]}  Qb6 {[%clk 1:20:36]} 18. b4 {[%clk 1:22:43]}  Rd8 {[%clk 1:07:04]}
19. Rd1 {[%clk 1:10:41]}  Nc8 {[%clk 0:58:40]} 20. Qc5 {[%clk 1:07:15]}  Qb8 {[%clk 0:56:58]} 21. Nh3 {[%clk 0:58:58]}  Bb7 {[%clk 0:53:25]}
22. Ng5 {[%clk 0:57:00]}  Rh6 {[%clk 0:51:58]} 23. Bd3 {[%clk 0:49:31]}  Nb6 {[%clk 0:40:16]} 24. Bc2 {[%clk 0:47:21]}  Ba8 {[%clk 0:34:29]}
25. Rhe1 {[%clk 0:45:54]}  Qb7 {[%clk 0:33:49]} 26. Kg3 {[%clk 0:42:19]}  Qa6 {[%clk 0:31:39]} 27. Bb3 {[%clk 0:42:13]}  Qb7 {[%clk 0:30:03]}
28. Re2 {[%clk 0:35:40]}  Rg6 {[%clk 0:25:51]} 29. Kh2 {[%clk 0:35:23]}  Nc8 {[%clk 0:22:39]} 30. Rd3 {[%clk 0:30:08]}  Qc7 {[%clk 0:18:47]}
31. Red2 {[%clk 0:27:51]}  Rh6 {[%clk 0:16:53]} 32. Bd1 {[%clk 0:26:37]}  Qb6 {[%clk 0:05:45]} 33. Kh3 {[%clk 0:22:55]}  Qb8 {[%clk 0:00:51]}
34. Bxh5+ {[%clk 0:20:37]}  Rxh5 {[%clk 0:01:14]} 35. Nxe6 {[%clk 0:21:00]}  d6 {[%clk 0:01:33]} 36. exd6 {[%clk 0:21:03]}  Rd7 {[%clk 0:01:55]}
37. Qe5 {[%clk 0:20:22]}  Rh7 {[%clk 0:01:05]} 38. Nc7+ {[%clk 0:20:35]} 1-0

[Event "2026 European Womens Championship"]
[Site "Batumi, GE"]
[Date "2026.06.01"]
[Round "7"]
[White "Jimenez Fernandez, Rebeca"]
[Black "Bulmaga, Irina"]
[Result "0-1"]
[Board "73"]
[TimeControl "5400+30"]
[WhiteFideId "32070934"]
[BlackFideId "13903063"]
[WhiteElo "2166"]
[BlackElo "2361"]
[WhiteTitle "WFM"]
[BlackTitle "IM"]
[WhiteClock "0:16:14"]
[BlackClock "0:12:26"]
[Variant "Standard"]

1. e4 {[%clk 1:30:58]}  c5 {[%clk 1:30:55]} 2. Nf3 {[%clk 1:31:23]}  Nc6 {[%clk 1:31:19]} 3. Bb5 {[%clk 1:31:45]}  g6 {[%clk 1:31:41]}
4. O-O {[%clk 1:31:56]}  Bg7 {[%clk 1:32:01]} 5. Re1 {[%clk 1:31:29]}  Nf6 {[%clk 1:30:05]} 6. c3 {[%clk 1:31:51]}  O-O {[%clk 1:30:21]}
7. h3 {[%clk 1:32:11]}  Qb6 {[%clk 1:27:25]} 8. a4 {[%clk 1:31:37]}  Rd8 {[%clk 1:22:15]} 9. d4 {[%clk 1:27:32]}  cxd4 {[%clk 1:18:50]}
10. cxd4 {[%clk 1:27:45]}  d5 {[%clk 1:18:38]} 11. e5 {[%clk 1:26:29]}  Ne4 {[%clk 1:16:28]} 12. Nc3 {[%clk 1:18:21]}  Be6 {[%clk 0:52:27]}
13. Be3 {[%clk 1:04:47]}  a6 {[%clk 0:42:45]} 14. Bxc6 {[%clk 0:44:23]}  Nxc3 {[%clk 0:39:21]} 15. bxc3 {[%clk 0:44:25]}  Qxc6 {[%clk 0:39:29]}
16. Qd2 {[%clk 0:39:49]}  Rac8 {[%clk 0:38:46]} 17. Rec1 {[%clk 0:39:42]}  f6 {[%clk 0:38:50]} 18. a5 {[%clk 0:31:37]}  Bf5 {[%clk 0:38:59]}
19. Bh6 {[%clk 0:20:49]}  Bh8 {[%clk 0:36:13]} 20. Bf4 {[%clk 0:21:12]}  Be4 {[%clk 0:35:27]} 21. Qe3 {[%clk 0:14:14]}  g5 {[%clk 0:24:29]}
22. Bh2 {[%clk 0:12:58]}  Bg6 {[%clk 0:19:30]} 23. Nd2 {[%clk 0:12:06]}  Qb5 {[%clk 0:19:53]} 24. Ra3 {[%clk 0:01:32]}  fxe5 {[%clk 0:18:24]}
25. Bxe5 {[%clk 0:01:46]}  Bxe5 {[%clk 0:18:32]} 26. dxe5 {[%clk 0:01:19]}  d4 {[%clk 0:14:58]} 27. Qxg5 {[%clk 0:01:43]}  Qb2 {[%clk 0:08:56]}
28. Raa1 {[%clk 0:02:08]}  dxc3 {[%clk 0:09:07]} 29. Ne4 {[%clk 0:02:02]}  Qb4 {[%clk 0:06:25]} 30. Ng3 {[%clk 0:01:02]}  c2 {[%clk 0:06:11]}
31. Nf5 {[%clk 0:01:24]}  Rc7 {[%clk 0:05:50]} 32. Nh6+ {[%clk 0:01:00]}  Kh8 {[%clk 0:05:29]} 33. e6 {[%clk 0:01:27]}  Qc5 {[%clk 0:03:24]}
34. Qg3 {[%clk 0:01:22]}  Kg7 {[%clk 0:02:53]} 35. Nf7 {[%clk 0:01:26]}  Rd2 {[%clk 0:02:54]} 36. Qf4 {[%clk 0:01:11]}  Rd4 {[%clk 0:02:35]}
37. Qg3 {[%clk 0:00:51]}  Rd2 {[%clk 0:01:19]} 38. Qf4 {[%clk 0:01:16]}  Qc3 {[%clk 0:01:26]} 39. Kh2 {[%clk 0:01:09]}  Rc4 {[%clk 0:01:26]}
40. Qb8 {[%clk 0:01:15]}  Bxf7 {[%clk 0:01:14]} 41. exf7 {[%clk 0:00:47]}  Kxf7 {[%clk 0:01:16]} 42. Qxb7 {[%clk 0:27:47]}  Rb4 {[%clk 0:20:04]}
43. Qa8 {[%clk 0:20:10]}  Qe5+ {[%clk 0:18:56]} 44. Kg1 {[%clk 0:20:11]}  Qxa1 {[%clk 0:14:32]} 45. Rxa1 {[%clk 0:20:21]}  Rb1+ {[%clk 0:14:40]}
46. Kh2 {[%clk 0:20:46]}  c1=Q {[%clk 0:14:06]} 47. Qf3+ {[%clk 0:20:12]}  Ke8 {[%clk 0:14:18]} 48. Rxb1 {[%clk 0:17:40]}  Qxb1 {[%clk 0:14:42]}
49. Qc6+ {[%clk 0:17:37]}  Kd8 {[%clk 0:13:48]} 50. Qa8+ {[%clk 0:17:25]}  Kc7 {[%clk 0:13:05]} 51. Qa7+ {[%clk 0:17:38]}  Qb7 {[%clk 0:12:09]}
52. Qc5+ {[%clk 0:16:14]}  Kb8 {[%clk 0:12:26]} 0-1

[Event "2026 European Womens Championship"]
[Site "Batumi, GE"]
[Date "2026.06.01"]
[Round "7"]
[White "Brunello, Marina"]
[Black "Hryzlova, Sofiia"]
[Result "1/2-1/2"]
[Board "74"]
[TimeControl "5400+30"]
[WhiteFideId "822590"]
[BlackFideId "14174669"]
[WhiteElo "2346"]
[BlackElo "2226"]
[WhiteTitle "IM"]
[BlackTitle "WIM"]
[WhiteClock "0:03:17"]
[BlackClock "0:01:05"]
[Variant "Standard"]

1. e4 {[%clk 1:30:57]}  c5 {[%clk 1:30:32]} 2. Nf3 {[%clk 1:31:21]}  d6 {[%clk 1:30:55]} 3. d4 {[%clk 1:31:48]}  cxd4 {[%clk 1:31:19]}
4. Nxd4 {[%clk 1:32:14]}  Nf6 {[%clk 1:31:42]} 5. Nc3 {[%clk 1:32:41]}  a6 {[%clk 1:32:04]} 6. Be3 {[%clk 1:32:57]}  e5 {[%clk 1:32:24]}
7. Nf3 {[%clk 1:33:23]}  Be7 {[%clk 1:32:23]} 8. Bc4 {[%clk 1:33:41]}  O-O {[%clk 1:31:02]} 9. Bb3 {[%clk 1:34:06]}  Nc6 {[%clk 1:30:47]}
10. Qe2 {[%clk 1:33:21]}  Be6 {[%clk 1:26:08]} 11. O-O {[%clk 1:33:42]}  h6 {[%clk 1:25:02]} 12. Rfd1 {[%clk 1:33:01]}  Rc8 {[%clk 1:14:08]}
13. Nd5 {[%clk 1:24:01]}  Bxd5 {[%clk 1:11:16]} 14. Bxd5 {[%clk 1:24:21]}  Nxd5 {[%clk 1:05:48]} 15. Rxd5 {[%clk 1:24:30]}  Qd7 {[%clk 1:03:42]}
16. c3 {[%clk 1:02:49]}  Qg4 {[%clk 0:56:45]} 17. Bb6 {[%clk 0:56:49]}  Nb8 {[%clk 0:54:58]} 18. h3 {[%clk 0:52:30]}  Qg6 {[%clk 0:55:04]}
19. Re1 {[%clk 0:42:39]}  Nd7 {[%clk 0:50:58]} 20. Ba5 {[%clk 0:42:56]}  Nc5 {[%clk 0:44:00]} 21. Bb4 {[%clk 0:33:06]}  Qe6 {[%clk 0:27:14]}
22. Red1 {[%clk 0:29:05]}  b5 {[%clk 0:26:01]} 23. Bxc5 {[%clk 0:28:34]}  Rxc5 {[%clk 0:26:21]} 24. Rxc5 {[%clk 0:28:23]}  dxc5 {[%clk 0:26:46]}
25. Rd5 {[%clk 0:28:49]}  Bf6 {[%clk 0:17:45]} 26. c4 {[%clk 0:27:30]}  Rb8 {[%clk 0:16:30]} 27. b3 {[%clk 0:26:34]}  Qe7 {[%clk 0:15:06]}
28. Qd3 {[%clk 0:23:13]}  Qc7 {[%clk 0:14:01]} 29. g3 {[%clk 0:20:28]}  Qa5 {[%clk 0:11:00]} 30. cxb5 {[%clk 0:16:16]}  Qxa2 {[%clk 0:08:43]}
31. Rxc5 {[%clk 0:16:29]}  axb5 {[%clk 0:07:59]} 32. Kg2 {[%clk 0:16:51]}  Qb2 {[%clk 0:05:12]} 33. h4 {[%clk 0:12:11]}  b4 {[%clk 0:04:44]}
34. Qc4 {[%clk 0:08:57]}  Qa3 {[%clk 0:00:48]} 35. Rc7 {[%clk 0:08:13]}  Rf8 {[%clk 0:01:09]} 36. Rb7 {[%clk 0:08:18]}  Qa8 {[%clk 0:00:43]}
37. Qxb4 {[%clk 0:05:39]}  Qc8 {[%clk 0:00:56]} 38. Nd2 {[%clk 0:03:25]}  Bxh4 {[%clk 0:00:46]} 39. Nc4 {[%clk 0:03:23]}  Bf6 {[%clk 0:00:39]}
40. Nd6 {[%clk 0:03:02]}  Qe6 {[%clk 0:00:34]} 41. Nf5 {[%clk 0:01:07]}  Qc8 {[%clk 0:21:27]} 42. Rb6 {[%clk 0:25:34]}  Bg5 {[%clk 0:19:58]}
43. Qd6 {[%clk 0:25:05]}  Re8 {[%clk 0:17:56]} 44. Qd5 {[%clk 0:24:59]}  Qd8 {[%clk 0:15:12]} 45. Rd6 {[%clk 0:18:54]}  Qa8 {[%clk 0:15:08]}
46. b4 {[%clk 0:18:41]}  Qxd5 {[%clk 0:06:05]} 47. Rxd5 {[%clk 0:18:41]}  Rb8 {[%clk 0:04:00]} 48. b5 {[%clk 0:18:42]}  g6 {[%clk 0:03:57]}
49. Nd6 {[%clk 0:17:35]}  Be7 {[%clk 0:03:46]} 50. Nc4 {[%clk 0:18:08]}  f6 {[%clk 0:04:11]} 51. b6 {[%clk 0:05:54]}  Kf7 {[%clk 0:04:14]}
52. Rb5 {[%clk 0:04:40]}  Ke8 {[%clk 0:04:34]} 53. Na5 {[%clk 0:03:24]}  Bd8 {[%clk 0:04:21]} 54. Nc4 {[%clk 0:03:40]}  Kd7 {[%clk 0:03:56]}
55. b7 {[%clk 0:01:52]}  Kc6 {[%clk 0:02:46]} 56. Rd5 {[%clk 0:02:16]}  Bc7 {[%clk 0:02:20]} 57. Ne3 {[%clk 0:02:21]}  h5 {[%clk 0:02:24]}
58. Rd2 {[%clk 0:01:48]}  Rxb7 {[%clk 0:02:38]} 59. Nd5 {[%clk 0:02:03]}  Bd8 {[%clk 0:02:17]} 60. Ra2 {[%clk 0:02:26]}  Rf7 {[%clk 0:02:02]}
61. Ra6+ {[%clk 0:02:07]}  Kd7 {[%clk 0:01:44]} 62. f3 {[%clk 0:02:21]}  Ke8 {[%clk 0:01:43]} 63. Ra8 {[%clk 0:02:17]}  Rf8 {[%clk 0:01:29]}
64. Ra7 {[%clk 0:02:26]}  Rf7 {[%clk 0:01:45]} 65. Ra8 {[%clk 0:02:53]}  Kd7 {[%clk 0:01:05]} 66. Ra7+ {[%clk 0:03:17]}  Ke8 {[%clk 0:01:05]} 1/2-1/2

[Event "2026 European Womens Championship"]
[Site "Batumi, GE"]
[Date "2026.06.01"]
[Round "7"]
[White "Chernyak, Viktoria"]
[Black "Gaponenko, Inna"]
[Result "1-0"]
[Board "75"]
[TimeControl "5400+30"]
[WhiteFideId "24165956"]
[BlackFideId "14101181"]
[WhiteElo "2191"]
[BlackElo "2331"]
[WhiteTitle "WGM"]
[BlackTitle "IM"]
[WhiteClock "0:13:49"]
[BlackClock "0:00:58"]
[Variant "Standard"]

1. c4 {[%clk 1:30:59]}  g6 {[%clk 1:30:21]} 2. d4 {[%clk 1:31:16]}  Nf6 {[%clk 1:30:44]} 3. Nc3 {[%clk 1:31:22]}  Bg7 {[%clk 1:31:01]}
4. e4 {[%clk 1:31:47]}  d6 {[%clk 1:31:22]} 5. Be2 {[%clk 1:31:50]}  O-O {[%clk 1:31:38]} 6. Nf3 {[%clk 1:32:01]}  e5 {[%clk 1:31:55]}
7. Be3 {[%clk 1:32:26]}  exd4 {[%clk 1:31:27]} 8. Nxd4 {[%clk 1:32:50]}  Re8 {[%clk 1:31:44]} 9. f3 {[%clk 1:33:10]}  c6 {[%clk 1:31:55]}
10. O-O {[%clk 1:30:47]}  d5 {[%clk 1:28:00]} 11. cxd5 {[%clk 1:29:04]}  Nxd5 {[%clk 1:24:30]} 12. Nxd5 {[%clk 1:23:15]}  cxd5 {[%clk 1:24:58]}
13. Qb3 {[%clk 1:21:17]}  a5 {[%clk 1:17:24]} 14. Rad1 {[%clk 1:12:38]}  Nc6 {[%clk 0:40:14]} 15. Bb5 {[%clk 0:59:30]}  Bd7 {[%clk 0:38:54]}
16. Qxd5 {[%clk 0:48:52]}  Be5 {[%clk 0:01:09]} 17. Nxc6 {[%clk 0:36:30]}  bxc6 {[%clk 0:01:26]} 18. Bxc6 {[%clk 0:30:33]}  Bxc6 {[%clk 0:01:37]}
19. Qxc6 {[%clk 0:30:57]}  Qh4 {[%clk 0:02:00]} 20. f4 {[%clk 0:31:06]}  Bxb2 {[%clk 0:02:28]} 21. e5 {[%clk 0:29:38]}  a4 {[%clk 0:01:02]}
22. Rd7 {[%clk 0:28:52]}  Qg4 {[%clk 0:00:55]} 23. Rfd1 {[%clk 0:26:44]}  a3 {[%clk 0:00:52]} 24. Qd5 {[%clk 0:23:06]}  Qf5 {[%clk 0:00:49]}
25. Rd6 {[%clk 0:22:53]}  Qc8 {[%clk 0:00:40]} 26. Rd7 {[%clk 0:22:51]}  Rf8 {[%clk 0:00:51]} 27. e6 {[%clk 0:22:23]}  Bf6 {[%clk 0:00:39]}
28. exf7+ {[%clk 0:20:49]}  Kg7 {[%clk 0:01:01]} 29. Bc5 {[%clk 0:20:59]}  Ra4 {[%clk 0:00:37]} 30. g3 {[%clk 0:15:11]}  Ra6 {[%clk 0:01:06]}
31. Bxf8+ {[%clk 0:15:04]}  Qxf8 {[%clk 0:01:32]} 32. Re1 {[%clk 0:13:59]}  Ra4 {[%clk 0:00:58]} 33. Re8 {[%clk 0:13:49]} 1-0

[Event "2026 European Womens Championship"]
[Site "Batumi, GE"]
[Date "2026.06.01"]
[Round "7"]
[White "Khukhashvili, Sopiko"]
[Black "Sieber, Fiona"]
[Result "0-1"]
[Board "76"]
[TimeControl "5400+30"]
[WhiteFideId "13602055"]
[BlackFideId "12902373"]
[WhiteElo "2329"]
[BlackElo "2224"]
[WhiteTitle "IM"]
[BlackTitle "WGM"]
[WhiteClock "0:02:55"]
[BlackClock "0:41:39"]
[Variant "Standard"]

1. e4 {[%clk 1:30:54]}  c5 {[%clk 1:30:56]} 2. Nf3 {[%clk 1:31:09]}  d6 {[%clk 1:31:21]} 3. d4 {[%clk 1:30:38]}  cxd4 {[%clk 1:31:46]}
4. Qxd4 {[%clk 1:30:33]}  Nc6 {[%clk 1:32:10]} 5. Qe3 {[%clk 1:29:10]}  g6 {[%clk 1:28:34]} 6. c4 {[%clk 1:29:28]}  Bg7 {[%clk 1:28:50]}
7. Nc3 {[%clk 1:29:53]}  Bg4 {[%clk 1:27:12]} 8. Be2 {[%clk 1:28:23]}  Nf6 {[%clk 1:26:39]} 9. O-O {[%clk 1:28:03]}  Nd7 {[%clk 1:23:13]}
10. Rb1 {[%clk 1:26:12]}  O-O {[%clk 1:20:26]} 11. b3 {[%clk 1:14:42]}  Qb6 {[%clk 1:12:35]} 12. Nd5 {[%clk 1:11:25]}  Qxe3 {[%clk 1:13:00]}
13. Bxe3 {[%clk 1:10:55]}  Nc5 {[%clk 1:11:08]} 14. h3 {[%clk 1:05:34]}  Bxf3 {[%clk 1:02:41]} 15. Bxf3 {[%clk 1:05:04]}  e6 {[%clk 1:00:09]}
16. Nc7 {[%clk 1:04:46]}  Rad8 {[%clk 1:00:00]} 17. Nb5 {[%clk 1:03:32]}  Be5 {[%clk 0:53:33]} 18. b4 {[%clk 0:58:03]}  Na4 {[%clk 0:49:40]}
19. Bd1 {[%clk 0:47:06]}  Nb2 {[%clk 0:46:55]} 20. Be2 {[%clk 0:43:41]}  a6 {[%clk 0:41:17]} 21. f4 {[%clk 0:43:32]}  Bg7 {[%clk 0:36:05]}
22. Na3 {[%clk 0:34:16]}  Na4 {[%clk 0:36:03]} 23. b5 {[%clk 0:32:18]}  Nd4 {[%clk 0:34:33]} 24. Bxd4 {[%clk 0:31:11]}  Bxd4+ {[%clk 0:34:59]}
25. Kh2 {[%clk 0:30:55]}  Nc3 {[%clk 0:33:22]} 26. Rbe1 {[%clk 0:25:10]}  Nxe4 {[%clk 0:33:33]} 27. Bf3 {[%clk 0:25:29]}  Nd2 {[%clk 0:33:24]}
28. Bxb7 {[%clk 0:25:08]}  Nxf1+ {[%clk 0:33:48]} 29. Rxf1 {[%clk 0:25:37]}  axb5 {[%clk 0:32:21]} 30. cxb5 {[%clk 0:25:40]}  d5 {[%clk 0:32:08]}
31. Nc2 {[%clk 0:25:35]}  Bc3 {[%clk 0:31:43]} 32. Rf3 {[%clk 0:23:56]}  d4 {[%clk 0:31:24]} 33. Rd3 {[%clk 0:24:23]}  f6 {[%clk 0:24:38]}
34. Kg3 {[%clk 0:24:43]}  e5 {[%clk 0:24:30]} 35. Kf3 {[%clk 0:25:03]}  Kf7 {[%clk 0:24:42]} 36. g3 {[%clk 0:19:43]}  Ke6 {[%clk 0:24:38]}
37. Bc6 {[%clk 0:19:06]}  Rc8 {[%clk 0:21:50]} 38. Na3 {[%clk 0:15:12]}  Rxc6 {[%clk 0:17:14]} 39. bxc6 {[%clk 0:15:24]}  Kd5 {[%clk 0:17:39]}
40. Rd1 {[%clk 0:14:53]}  e4+ {[%clk 0:17:41]} 41. Kf2 {[%clk 0:14:09]}  Kxc6 {[%clk 0:14:05]} 42. Rb1 {[%clk 0:11:57]}  Ra8 {[%clk 0:12:58]}
43. Rb3 {[%clk 0:12:18]}  Ra4 {[%clk 0:12:59]} 44. g4 {[%clk 0:10:59]}  Bb4 {[%clk 0:11:55]} 45. Nc4 {[%clk 0:05:31]}  Rxa2+ {[%clk 0:12:05]}
46. Rb2 {[%clk 0:06:00]}  Rxb2+ {[%clk 0:11:41]} 47. Nxb2 {[%clk 0:06:28]}  Kd5 {[%clk 0:11:37]} 48. h4 {[%clk 0:06:35]}  f5 {[%clk 0:10:53]}
49. gxf5 {[%clk 0:04:29]}  gxf5 {[%clk 0:11:19]} 50. h5 {[%clk 0:04:24]}  Bd6 {[%clk 0:11:36]} 51. Kg3 {[%clk 0:04:23]}  d3 {[%clk 0:11:52]}
52. Kf2 {[%clk 0:03:02]}  Bxf4 {[%clk 0:12:11]} 53. Na4 {[%clk 0:02:55]}  Ke5 {[%clk 0:41:39]} 0-1